bitfinex/quotes_ETHUSD_20241019
["timestamp","ask_amount","ask_price","bid_price","bid_amount"]
[1729296721374,0.07508947,2637.5,2637.4,1.0183]
[1729296721902,0.79314202,2637.7,2637.5,0.7823]
[1729296722203,0.28347994,2637.6,2637.5,0.7823]
[1729296722498,0.79314202,2637.7,2637.5,0.7823]
[1729296722659,0.2834805,2637.6,2637.5,0.7823]
[1729296723270,0.28347434,2637.6,2637.5,0.7823]
[1729296725894,0.79314202,2637.7,2637.5,0.7823]
[1729296726062,0.28343839,2637.6,2637.5,0.7823]
[1729296726994,0.28343839,2637.6,2637.4,0.26]
[1729296727306,0.79314202,2637.6,2637.4,0.26]
[1729296728211,0.07514764,2637.5,2637.4,0.26]
[1729296729662,0.79314202,2637.6,2637.4,0.26]
[1729296729862,0.07514764,2637.5,2637.4,0.26]
[1729296730281,0.35864369,2637.5,2637.4,0.26]
[1729296730606,0.35864319,2637.5,2637.4,0.26]
[1729296730962,0.07514764,2637.5,2637.4,0.26]
[1729296731366,0.35869207,2637.5,2637.4,0.26]
[1729296733432,0.07514764,2637.5,2637.4,0.26]
[1729296733720,0.35880346,2637.5,2637.4,0.26]
[1729296734926,1.15194548,2637.5,2637.4,0.26]
[1729296737218,0.86828966,2637.5,2637.4,0.26]
[1729296737407,1.15190811,2637.5,2637.4,0.26]
[1729296741033,1.15191583,2637.5,2637.4,0.26]
[1729296744805,0.86828966,2637.5,2637.4,0.26]
[1729296745006,1.15195014,2637.5,2637.4,0.26]
[1729296745309,1.15194721,2637.5,2637.4,0.26]
[1729296750439,0.35880519,2637.5,2637.4,1.0412]
[1729296750632,0.07514764,2637.5,2637.4,1.0412]
[1729296750836,0.79314202,2637.7,2637.4,1.0412]
[1729296751059,0.35828446,2637.6,2637.4,1.0412]
[1729296751332,0.07455686,2637.6,2637.4,1.0412]
[1729296752073,0.79314202,2637.8,2637.4,1.0412]
[1729296752274,0.35832922,2637.7,2637.4,1.0412]
[1729296752566,0.28369084,2637.6,2637.4,1.0412]
[1729296752781,0.8677804,2637.7,2637.4,1.0412]
[1729296752932,0.0743225,2637.5,2637.4,1.0412]
[1729296753429,0.79314202,2637.8,2637.4,1.0412]
[1729296753629,0.35797645,2637.7,2637.4,1.0412]
[1729296753875,0.07434181,2637.7,2637.4,1.0412]
[1729296754072,0.79314202,2637.8,2637.4,1.0412]
[1729296754273,0.35802955,2637.7,2637.4,1.0412]
[1729296754482,9.12304811,2639.0,2637.4,1.0412]
[1729296754782,3.987,2639.6,2637.4,1.0412]
[1729296754783,1.2053524,2638.1,2637.4,1.0412]
[1729296754984,0.63813105,2638.0,2637.4,1.0412]
[1729296755286,0.79413799,2637.6,2637.4,1.0412]
[1729296755485,0.074367,2637.5,2637.4,1.0412]
[1729296755997,0.35797367,2637.5,2637.4,1.0412]
[1729296756192,0.074367,2637.5,2637.4,1.0412]
[1729296756349,0.35798129,2637.5,2637.4,1.0412]
[1729296759288,0.35798129,2637.5,2637.4,0.26]
[1729296759865,0.074367,2637.5,2637.4,0.26]
[1729296760070,0.35797633,2637.5,2637.4,0.26]
[1729296763601,0.35805585,2637.5,2637.4,0.26]
[1729296767696,0.074367,2637.5,2637.4,0.26]
[1729296767856,0.3580646,2637.5,2637.4,0.26]
[1729296770933,1.15220259,2637.5,2637.4,0.26]
[1729296771124,1.15223773,2637.5,2637.4,0.26]
[1729296772893,0.86850499,2637.5,2637.4,0.26]
[1729296774134,1.15223363,2637.5,2637.4,0.26]
[1729296774948,0.86850499,2637.5,2637.4,0.26]
[1729296775101,1.15222707,2637.5,2637.4,0.26]
[1729296779508,1.15222707,2637.5,2637.4,1.0887]
[1729296780494,0.35808908,2637.5,2637.4,1.0887]
[1729296781505,0.35806967,2637.5,2637.4,1.0887]
[1729296782540,1.15220766,2637.5,2637.4,1.0887]
[1729296782991,0.35806967,2637.5,2637.4,1.0887]
[1729296783192,0.074367,2637.5,2637.4,1.0887]
[1729296783399,0.35808414,2637.5,2637.4,1.0887]
[1729296783708,0.074367,2637.5,2637.4,1.0887]
[1729296793920,0.074367,2637.5,2637.4,1.6387]
[1729296794130,0.79413799,2637.7,2637.4,0.81]
[1729296794308,0.0693739,2637.6,2637.5,0.7816]
[1729296795404,0.0693739,2637.6,2637.5,1.3316]
[1729296795610,0.0693739,2637.6,2637.5,4.3316]
[1729296795841,0.0693739,2637.6,2637.5,1.3316]
[1729296798415,0.0693739,2637.6,2637.5,1.3316]
[1729296800028,0.79413799,2637.8,2637.6,1.3316]
[1729296800656,0.79413799,2637.8,2637.5,0.55]
[1729296800966,0.79413799,2637.8,2637.6,0.7816]
[1729296801262,0.79413799,2637.8,2637.7,0.55]
[1729296801428,0.79413799,2637.9,2637.7,0.55]
[1729296802041,0.79413799,2637.9,2637.5,1.3316]
[1729296802236,0.79413799,2637.9,2637.7,0.55]
[1729296803163,0.06949959,2637.8,2637.7,0.55]
[1729296805147,0.06949959,2637.8,2637.7,1.3316]
[1729296805827,0.06949959,2637.8,2637.7,4.3316]
[1729296806027,0.06949959,2637.8,2637.7,1.3316]
[1729296807255,1.19120699,2638.1,2637.8,0.55]
[1729296809346,1.19120699,2638.2,2637.8,0.55]
[1729296812896,0.79391522,2638.1,2637.8,0.55]
[1729296814363,0.79391522,2638.1,2637.9,0.7693]
[1729296818295,0.06968699,2638.0,2637.9,1.3193]
[1729296821897,0.06968699,2638.0,2637.5,1.3543]
[1729296822395,0.1516,2637.9,2637.5,0.55]
[1729296822824,0.94551522,2637.9,2637.4,0.26]
[1729296823098,0.06739827,2637.8,2637.4,0.26]
[1729296823629,0.06739827,2637.8,2637.5,0.8043]
[1729296824034,0.79391522,2638.0,2637.5,0.8043]
[1729296824239,0.79391522,2638.0,2637.5,1.25663453]
[1729296824408,0.06738732,2637.9,2637.7,0.08]
[1729296824741,0.06738732,2637.9,2637.8,1.3543]
[1729296824953,0.79391522,2638.1,2637.8,1.3543]
[1729296825102,0.06736268,2638.0,2637.9,0.8043]
[1729296825302,0.06736268,2638.0,2637.9,1.3543]
[1729296825604,0.79391522,2638.2,2638.0,0.55]
[1729296825914,0.79391522,2638.2,2637.9,1.4343]
[1729296826116,0.06513414,2638.1,2638.0,0.55]
[1729296826951,0.06513414,2638.1,2638.0,0.63]
[1729296828108,0.06513414,2638.1,2638.0,1.4343]
[1729296828505,0.06513414,2638.1,2638.0,7.10442379]
[1729296828708,0.06513414,2638.1,2638.0,7.45494872]
[1729296828932,0.79391522,2638.4,2638.3,0.8043]
[1729296829118,0.79391522,2638.4,2638.3,0.63]
[1729296829119,0.85690711,2638.4,2638.3,0.63]
[1729296829460,0.06299189,2638.4,2638.3,1.4343]
[1729296835484,0.06299189,2638.4,2638.3,0.63]
[1729296835785,0.85690711,2638.4,2638.3,0.63]
[1729296838581,0.06299189,2638.4,2638.3,0.63]
[1729296838957,0.1516,2638.8,2638.3,0.63]
[1729296839141,0.1516,2638.8,2638.4,3.0]
[1729296839342,0.06313426,2638.7,2638.4,0.09]
[1729296839545,0.1516,2638.8,2638.4,0.09]
[1729296839843,0.06313426,2638.7,2638.4,0.09]
[1729296840273,0.1516,2638.8,2638.4,0.09]
[1729296840487,0.06312462,2638.6,2638.4,0.09]
[1729296840889,0.1516,2638.8,2638.3,1.00228214]
[1729296841093,0.06311497,2638.5,2638.3,1.00228214]
[1729296841248,0.1516,2638.8,2638.3,1.00228214]
[1729296841445,0.06310532,2638.4,2638.3,1.00228214]
[1729296841649,0.1516,2638.8,2638.3,1.09228214]
[1729296841848,0.06310532,2638.4,2638.3,1.09228214]
[1729296842097,0.1516,2638.8,2638.3,1.09228214]
[1729296842257,0.06310532,2638.4,2638.3,1.09228214]
[1729296842466,0.1516,2638.8,2638.3,1.09228214]
[1729296842958,0.06313426,2638.7,2638.3,1.09228214]
[1729296843161,0.1516,2638.8,2638.3,1.09228214]
[1729296843678,0.79327684,2639.0,2638.3,0.54228214]
[1729296843679,0.06313426,2638.7,2638.3,0.54228214]
[1729296843994,0.1516,2638.6,2638.3,0.54228214]
[1729296844202,0.21449545,2638.6,2638.3,0.54228214]
[1729296857099,0.21449545,2638.6,2638.3,1.32058214]
[1729296857299,0.06289545,2638.6,2638.3,1.32058214]
[1729296857603,0.1516,2638.8,2638.3,1.32058214]
[1729296857839,0.06064821,2638.7,2638.3,1.32058214]
[1729296858140,0.1516,2638.8,2638.3,1.32058214]
[1729296858299,0.06063856,2638.6,2638.3,1.32058214]
[1729296858494,0.1516,2638.8,2638.3,1.32058214]
[1729296858737,0.06062891,2638.5,2638.3,1.32058214]
[1729296858896,0.1516,2638.8,2638.3,1.32058214]
[1729296859098,0.06061926,2638.4,2638.3,1.32058214]
[1729296859295,0.1516,2638.8,2638.3,1.32058214]
[1729296859527,0.06061926,2638.4,2638.3,1.32058214]
[1729296859700,0.1516,2638.8,2638.3,1.32058214]
[1729296859916,0.06061926,2638.4,2638.3,1.32058214]
[1729296860139,0.1516,2638.8,2638.3,1.32058214]
[1729296860547,0.06064821,2638.7,2638.3,1.32058214]
[1729296860935,0.1516,2638.8,2638.3,1.32058214]
[1729296861107,0.06063856,2638.6,2638.3,1.32058214]
[1729296861443,0.06062891,2638.5,2638.3,1.32058214]
[1729296861601,0.1516,2638.8,2638.3,1.32058214]
[1729296861802,0.06064821,2638.7,2638.3,1.32058214]
[1729296862003,0.1516,2638.8,2638.3,1.32058214]
[1729296862647,0.06063856,2638.6,2638.3,1.32058214]
[1729296862807,0.06064821,2638.7,2638.3,1.32058214]
[1729296863007,0.1516,2638.8,2638.3,1.32058214]
[1729296863235,0.06064821,2638.7,2638.3,1.32058214]
[1729296863620,0.1516,2638.8,2638.3,1.32058214]
[1729296863826,0.06063856,2638.6,2638.3,1.32058214]
[1729296864029,0.06064821,2638.7,2638.3,1.32058214]
[1729296864238,0.06062891,2638.5,2638.3,1.32058214]
[1729296864441,0.1516,2638.8,2638.3,1.32058214]
[1729296864731,0.06061926,2638.4,2638.3,1.32058214]
[1729296864911,0.1516,2638.8,2638.3,1.32058214]
[1729296865329,0.06064821,2638.7,2638.3,1.32058214]
[1729296865706,0.1516,2638.8,2638.3,1.32058214]
[1729296865906,0.06063856,2638.6,2638.3,1.32058214]
[1729296866102,0.1516,2638.8,2638.3,1.32058214]
[1729296866103,0.06064821,2638.7,2638.3,1.32058214]
[1729296866303,0.06062891,2638.5,2638.3,1.32058214]
[1729296866525,0.1516,2638.8,2638.3,1.32058214]
[1729296866725,0.06061926,2638.4,2638.3,1.32058214]
[1729296866945,0.1516,2638.8,2638.3,1.32058214]
[1729296867119,0.06061926,2638.4,2638.3,1.32058214]
[1729296867333,0.1516,2638.8,2638.3,1.32058214]
[1729296867739,0.06066884,2638.7,2638.3,1.32058214]
[1729296868137,0.1516,2638.8,2638.3,1.32058214]
[1729296868339,0.06065919,2638.6,2638.3,1.32058214]
[1729296868586,0.06066884,2638.7,2638.3,1.32058214]
[1729296868753,0.06064955,2638.5,2638.3,1.32058214]
[1729296869067,0.06063646,2638.4,2638.3,1.32058214]
[1729296869433,0.1516,2638.8,2638.3,1.32058214]
[1729296869728,0.06063646,2638.4,2638.3,1.32058214]
[1729296869923,0.1516,2638.8,2638.3,1.32058214]
[1729296870267,0.28341054,2638.7,2638.3,1.32058214]
[1729296870439,0.28341054,2638.6,2638.3,1.32058214]
[1729296870642,0.06066541,2638.7,2638.3,1.32058214]
[1729296870864,0.06064611,2638.5,2638.3,1.32058214]
[1729296871050,0.1516,2638.8,2638.3,1.32058214]
[1729296871286,0.06063646,2638.4,2638.3,1.32058214]
[1729296871486,0.1516,2638.8,2638.3,1.32058214]
[1729296871658,0.06063646,2638.4,2638.3,1.32058214]
[1729296871999,0.1516,2638.8,2638.3,1.32058214]
[1729296872197,0.28349558,2638.7,2638.3,1.32058214]
[1729296872414,0.28349558,2638.6,2638.3,1.32058214]
[1729296872557,0.06065576,2638.6,2638.3,1.32058214]
[1729296872954,0.06064611,2638.5,2638.3,1.32058214]
[1729296873185,0.1516,2638.8,2638.3,1.32058214]
[1729296873399,0.34417353,2638.7,2638.3,1.32058214]
[1729296873605,0.06066541,2638.7,2638.3,1.32058214]
[1729296873805,0.1516,2638.8,2638.3,1.32058214]
[1729296873987,0.28351044,2638.7,2638.3,1.32058214]
[1729296874198,0.28351321,2638.6,2638.3,1.32058214]
[1729296874399,0.05854803,2638.5,2638.3,1.32058214]
[1729296874928,0.05853838,2638.4,2638.3,1.32058214]
[1729296875411,0.1516,2638.8,2638.3,1.32058214]
[1729296875715,0.28353274,2638.7,2638.3,1.32058214]
[1729296876011,0.28353246,2638.6,2638.3,1.32058214]
[1729296876212,0.05854803,2638.5,2638.3,1.32058214]
[1729296876387,0.94487684,2638.8,2638.3,1.32058214]
[1729296876718,0.3421618,2638.7,2638.3,1.32058214]
[1729296876873,0.28359447,2638.6,2638.3,1.32058214]
[1729296877075,0.05856733,2638.7,2638.3,1.32058214]
[1729296877275,0.05854803,2638.5,2638.3,1.32058214]
[1729296877611,0.05853838,2638.4,2638.3,1.32058214]
[1729296877913,0.94487684,2638.8,2638.3,1.32058214]
[1729296878076,0.05853838,2638.4,2638.3,1.32058214]
[1729296878407,0.94487684,2638.8,2638.3,1.32058214]
[1729296878613,0.28364547,2638.7,2638.3,1.32058214]
[1729296878855,0.34220315,2638.6,2638.3,1.32058214]
[1729296879055,0.05855768,2638.6,2638.3,1.32058214]
[1729296879470,0.94487684,2638.8,2638.3,1.32058214]
[1729296879668,0.05854803,2638.5,2638.3,1.32058214]
[1729296879851,0.28367372,2638.7,2638.3,1.32058214]
[1729296880052,0.05853838,2638.4,2638.3,1.32058214]
[1729296880228,0.28367372,2638.7,2638.3,1.32058214]
[1729296880429,0.34226947,2638.6,2638.3,1.32058214]
[1729296880652,0.28371179,2638.5,2638.3,1.32058214]
[1729296880853,0.05855768,2638.6,2638.3,1.32058214]
[1729296881083,0.05853838,2638.4,2638.3,1.32058214]
[1729296881227,0.94487684,2638.8,2638.3,1.32058214]
[1729296881573,0.3422941,2638.7,2638.3,1.32058214]
[1729296881735,0.28372677,2638.6,2638.3,1.32058214]
[1729296881940,0.05856733,2638.7,2638.3,1.32058214]
[1729296881941,0.28372677,2638.5,2638.3,1.32058214]
[1729296882239,0.05854803,2638.5,2638.3,1.32058214]
[1729296882448,0.79327684,2638.7,2638.3,1.32058214]
[1729296882646,0.05853838,2638.4,2638.3,0.54228214]
[1729296882852,0.79327684,2638.7,2638.3,0.54228214]
[1729296883171,0.05853838,2638.4,2638.3,0.54228214]
[1729296883381,0.79327684,2638.7,2638.3,0.54228214]
[1729296883541,0.05853838,2638.4,2638.3,0.54228214]
[1729296884035,0.79327684,2638.7,2638.3,0.54228214]
[1729296884231,0.05853148,2638.4,2638.3,0.54228214]
[1729296884435,0.1516,2638.5,2638.3,0.54228214]
[1729296884738,0.34222208,2638.4,2638.3,0.54228214]
[1729296885482,1.13549892,2638.4,2638.3,0.45228214]
[1729296885779,2.03825907,2638.4,2638.3,0.45228214]
[1729296886079,2.9959565,2638.4,2638.3,0.45228214]
[1729296886541,2.99643179,2638.4,2638.3,0.45228214]
[1729296887770,1.40940281,2638.4,2638.3,0.45228214]
[1729296888559,1.40940281,2638.4,2638.3,0.69228214]
[1729296888755,2.59884327,2638.4,2638.3,0.69228214]
[1729296889378,2.24432155,2638.4,2638.3,0.69228214]
[1729296890994,1.96063095,2638.4,2638.3,0.69228214]
[1729296891191,2.52684343,2638.4,2638.3,0.69228214]
[1729296891689,2.5267886,2638.4,2638.3,0.69228214]
[1729296891891,2.5267886,2638.4,2638.3,0.24]
[1729296892060,1.69115616,2638.4,2638.3,0.24]
[1729296892394,3.27818514,2638.4,2638.3,0.24]
[1729296894089,1.69115616,2638.4,2638.3,0.24]
[1729296894288,1.33734814,2638.4,2638.3,0.24]
[1729296894499,1.69097627,2638.4,2638.3,0.24]
[1729296894790,2.52530317,2638.4,2638.3,0.24]
[1729296897568,2.52477851,2638.4,2638.3,0.24]
[1729296900485,2.24167227,2638.4,2638.3,0.24]
[1729296900970,2.24126263,2638.4,2638.3,0.24]
[1729296901167,2.9944571,2638.4,2638.3,0.24]
[1729296901374,1.40740529,2638.4,2638.3,0.24]
[1729296901575,3.38633528,2638.4,2638.3,0.24]
[1729296901813,3.38594349,2638.4,2638.3,0.24]
[1729296901963,1.4070135,2638.4,2638.3,0.24]
[1729296902169,2.82403923,2638.4,2638.3,0.24]
[1729296902467,0.84595449,2638.4,2638.3,0.24]
[1729296902664,2.42810068,2638.4,2638.3,0.24]
[1729296904076,2.07486568,2638.4,2638.3,0.24]
[1729296904382,1.67932569,2638.4,2638.3,0.24]
[1729296904574,1.28379715,2638.4,2638.3,0.24]
[1729296904768,1.28373115,2638.4,2638.3,0.24]
[1729296906073,0.49265349,2638.4,2638.3,0.24]
[1729296906274,1.28373115,2638.4,2638.3,0.24]
[1729296906475,0.49265349,2638.4,2638.3,0.24]
[1729296906791,1.28373115,2638.4,2638.3,0.24]
[1729296907188,0.49265349,2638.4,2638.3,0.24]
[1729296907392,1.28373115,2638.4,2638.3,0.24]
[1729296907592,0.49265349,2638.4,2638.3,0.24]
[1729296907977,1.28373115,2638.4,2638.3,0.24]
[1729296908414,1.00120914,2638.4,2638.3,0.24]
[1729296908711,1.28367106,2638.4,2638.3,0.24]
[1729296909070,0.4925934,2638.4,2638.3,0.24]
[1729296909279,1.28367106,2638.4,2638.3,0.24]
[1729296909987,0.4925934,2638.4,2638.3,0.24]
[1729296910586,1.28367106,2638.4,2638.3,0.24]
[1729296911537,0.4925934,2638.4,2638.3,0.24]
[1729296911828,1.28367106,2638.4,2638.3,0.24]
[1729296912805,1.28369467,2638.4,2638.3,0.24]
[1729296915953,1.13209467,2638.4,2638.3,0.24]
[1729296917868,0.84960914,2638.4,2638.3,0.24]
[1729296918020,1.13217099,2638.4,2638.3,0.24]
[1729296924560,0.34109333,2638.4,2638.3,0.24]
[1729296924760,1.52769953,2638.4,2638.3,0.24]
[1729296925565,0.34109333,2638.4,2638.3,0.24]
[1729296925773,1.52769953,2638.4,2638.3,0.24]
[1729296925954,1.13333003,2638.4,2638.3,0.24]
[1729296926265,0.34109333,2638.4,2638.3,0.24]
[1729296926488,0.05853148,2638.4,2638.3,0.24]
[1729296926829,0.05853148,2638.4,2638.3,1.0402]
[1729296927030,0.7922367,2638.7,2638.3,0.24]
[1729296927273,0.0580007,2638.6,2638.4,0.8002]
[1729296927706,0.7922367,2638.7,2638.4,0.8002]
[1729296927861,0.05799105,2638.5,2638.4,0.8002]
[1729296928194,0.7922367,2638.7,2638.4,0.8002]
[1729296928359,0.05807358,2638.5,2638.4,0.8002]
[1729296928560,0.7922367,2638.8,2638.4,0.8002]
[1729296928759,0.05807358,2638.5,2638.4,0.8002]
[1729296929391,0.7922367,2638.8,2638.4,0.8002]
[1729296929566,0.05794025,2638.5,2638.4,0.8002]
[1729296929747,0.7922367,2638.8,2638.4,0.8002]
[1729296929951,0.05794025,2638.5,2638.4,1.3502]
[1729296930154,0.7922367,2639.1,2638.6,0.55]
[1729296930451,0.7922367,2639.3,2638.7,0.8002]
[1729296931153,0.28307195,2639.2,2638.7,0.8002]
[1729296931463,0.7922367,2639.3,2638.7,0.8002]
[1729296931665,1.07520791,2639.2,2638.7,0.8002]
[1729296931979,0.28297121,2639.1,2638.7,0.8002]
[1729296932187,1.07520791,2639.0,2638.7,0.8002]
[1729296932499,0.7922367,2639.0,2638.7,0.8002]
[1729296932792,0.2828833,2638.9,2638.7,0.8002]
[1729296932962,0.22617262,2638.9,2638.7,0.8002]
[1729296933165,1.01840932,2638.9,2638.4,0.7745]
[1729296933369,0.7922367,2639.0,2638.4,0.7745]
[1729296933583,0.2828368,2638.9,2638.4,0.7745]
[1729296933896,0.7922367,2638.9,2638.4,0.7745]
[1729296934201,1.07506961,2638.8,2638.4,0.7745]
[1729296934402,0.28283291,2638.7,2638.4,0.7745]
[1729296934569,0.7922367,2638.8,2638.4,0.7745]
[1729296934905,1.16349561,2638.8,2638.4,0.7745]
[1729296935123,0.28280096,2638.7,2638.4,0.7745]
[1729296935401,1.16349561,2638.8,2638.4,0.7745]
[1729296935582,0.28279276,2638.7,2638.4,0.7745]
[1729296935759,1.16349561,2638.8,2638.4,0.7745]
[1729296935959,0.51780376,2638.7,2638.4,0.7745]
[1729296936160,0.23501018,2638.7,2638.4,0.7745]
[1729296936769,1.02724688,2638.7,2638.3,0.24]
[1729296938099,0.05660292,2638.6,2638.3,0.24]
[1729296939872,0.84883962,2638.6,2638.3,0.24]
[1729296940069,0.29880852,2638.6,2638.3,0.24]
[1729296940287,1.09104522,2638.6,2638.3,0.24]
[1729296940600,1.07498927,2638.5,2638.3,0.24]
[1729296940901,0.05658362,2638.4,2638.3,0.24]
[1729296942266,1.0344423,2638.6,2638.3,0.24]
[1729296942461,0.05659327,2638.5,2638.3,0.24]
[1729296944307,0.32301847,2638.5,2638.3,0.24]
[1729296948068,1.11525517,2638.5,2638.3,0.24]
[1729296948263,0.28282517,2638.4,2638.3,0.24]
[1729296948471,0.33940879,2638.4,2638.3,0.24]
[1729296953093,0.33965043,2638.4,2638.3,0.24]
[1729296953893,0.05658362,2638.4,2638.3,1.0618]
[1729296954549,0.33967203,2638.4,2638.3,1.0618]
[1729296954705,0.05658362,2638.4,2638.3,1.0618]
[1729296954900,0.7922367,2638.8,2638.3,1.0618]
[1729296955237,0.33944859,2638.7,2638.3,1.0618]
[1729296955442,0.05633068,2638.7,2638.3,1.0618]
[1729296955742,0.7922367,2638.8,2638.3,1.0618]
[1729296955905,0.05632447,2638.6,2638.3,1.0618]
[1729296956106,0.7922367,2638.8,2638.3,1.0618]
[1729296956443,0.05636295,2638.5,2638.3,1.0618]
[1729296956598,0.7922367,2638.8,2638.3,1.0618]
[1729296956803,0.0563533,2638.4,2638.3,1.0618]
[1729296957004,0.7922367,2638.8,2638.3,1.0618]
[1729296957316,0.28311123,2638.7,2638.3,1.0618]
[1729296957517,0.05633341,2638.7,2638.3,1.0618]
[1729296957725,0.7922367,2638.8,2638.3,1.0618]
[1729296958048,0.05632377,2638.6,2638.3,1.0618]
[1729296958252,0.0563506,2638.7,2638.3,1.0618]
[1729296958410,0.05633131,2638.5,2638.3,1.0618]
[1729296958612,0.7922367,2638.8,2638.3,1.0618]
[1729296958853,0.05632166,2638.4,2638.3,1.0618]
[1729296959207,0.7922367,2638.8,2638.3,1.0618]
[1729296959402,0.05632166,2638.4,2638.3,1.0618]
[1729296959645,0.7922367,2638.8,2638.3,1.0618]
[1729296959853,0.05632166,2638.4,2638.3,1.0618]
[1729296960023,0.7922367,2638.8,2638.3,1.0618]
[1729296960223,0.05632166,2638.4,2638.3,1.0618]
[1729296960716,0.7922367,2638.8,2638.3,0.8218]
[1729296960912,0.05632166,2638.4,2638.3,0.8218]
[1729296961119,0.7922367,2638.8,2638.3,0.8218]
[1729296961326,0.05632166,2638.4,2638.3,0.8218]
[1729296961528,0.7922367,2638.8,2638.3,0.8218]
[1729296961733,0.05632166,2638.4,2638.3,0.8218]
[1729296962013,0.7922367,2638.8,2638.3,0.8218]
[1729296962211,0.05632166,2638.4,2638.3,0.8218]
[1729296962411,0.7922367,2638.8,2638.3,0.8218]
[1729296962641,0.05632166,2638.4,2638.3,0.8218]
[1729296962963,0.05639382,2638.4,2638.3,0.8218]
[1729296963453,0.7922367,2638.8,2638.3,0.8218]
[1729296963655,0.05639039,2638.4,2638.3,0.8218]
[1729296963862,0.7922367,2638.8,2638.3,0.8218]
[1729296964057,0.05639039,2638.4,2638.3,0.8218]
[1729296964557,0.7922367,2638.8,2638.3,0.8218]
[1729296964719,0.05639039,2638.4,2638.3,0.8218]
[1729296964920,0.7922367,2638.8,2638.3,0.8218]
[1729296965132,0.05639039,2638.4,2638.3,0.8218]
[1729296965336,0.7922367,2638.8,2638.3,0.8218]
[1729296965563,0.05639039,2638.4,2638.3,0.8218]
[1729296965863,0.7922367,2638.8,2638.3,0.8218]
[1729296966065,0.05639039,2638.4,2638.3,0.8218]
[1729296966271,0.7922367,2638.8,2638.3,0.8218]
[1729296966427,0.05639727,2638.4,2638.3,0.8218]
[1729296966628,0.7922367,2638.9,2638.3,0.8218]
[1729296966942,1.58214619,2639.1,2638.1,0.45230235]
[1729296966943,0.7922367,2639.1,2638.5,0.8218]
[1729296967252,0.05643929,2638.8,2638.5,0.8218]
[1729296967457,1.1866062,2639.3,2638.5,0.8218]
[1729296967458,0.7922367,2639.3,2638.5,0.8218]
[1729296967655,0.05644341,2638.7,2638.5,0.8218]
[1729296967964,0.28322917,2639.2,2638.5,0.8218]
[1729296967965,0.7922367,2639.2,2638.5,0.8218]
[1729296968270,0.05643376,2638.6,2638.5,1.3718]
[1729296968437,0.7922367,2639.2,2638.6,0.8218]
[1729296968636,0.28320529,2639.1,2638.6,0.8218]
[1729296968950,0.05648199,2639.1,2638.6,0.8218]
[1729296970179,0.7922367,2639.3,2638.6,0.8218]
[1729296970335,0.05660984,2639.0,2638.6,0.8218]
[1729296970537,0.7922367,2639.4,2638.6,0.8218]
[1729296970757,0.05660019,2638.9,2638.6,0.8218]
[1729296970956,0.7922367,2639.4,2638.6,0.8218]
[1729296971162,0.05663865,2638.8,2638.6,0.8218]
[1729296971361,0.7922367,2639.4,2638.6,0.8218]
[1729296971678,0.056629,2638.7,2638.6,0.8218]
[1729296971970,0.7922367,2639.4,2638.6,0.8218]
[1729296972174,0.2831458,2639.3,2638.7,0.8218]
[1729296972477,0.7922367,2639.3,2638.7,0.8218]
[1729296972849,0.28310445,2639.2,2638.7,0.8218]
[1729296973049,0.7922367,2639.2,2638.7,0.8218]
[1729296974190,0.7922367,2639.3,2638.7,0.8218]
[1729296974383,0.28306427,2639.2,2638.7,0.8218]
[1729296974696,0.7922367,2639.2,2638.7,0.8218]
[1729296974890,0.4346438,2639.1,2638.7,0.8218]
[1729296975104,0.1516,2639.1,2638.7,0.8218]
[1729296975301,0.9438367,2639.1,2638.7,0.8218]
[1729296975451,0.1516,2639.1,2638.7,0.8218]
[1729296975776,1.15688099,2639.1,2638.7,0.8218]
[1729296975978,0.28303088,2639.0,2638.7,0.8218]
[1729296976292,1.15688099,2639.1,2638.7,0.8218]
[1729296976496,0.28304161,2639.0,2638.7,0.8218]
[1729296976650,1.15688099,2639.1,2638.7,0.8218]
[1729296976849,0.28304347,2639.0,2638.7,0.8218]
[1729296977160,1.15688099,2639.1,2638.7,0.8218]
[1729296977488,0.28305819,2639.0,2638.7,0.8218]
[1729296977781,0.7922367,2639.2,2638.7,0.8218]
[1729296977949,0.28307029,2639.1,2638.7,0.8218]
[1729296978146,0.7922367,2639.2,2638.7,0.8218]
[1729296978388,0.28306273,2639.1,2638.7,0.8218]
[1729296978584,0.7922367,2639.1,2638.7,0.8218]
[1729296978791,0.28305438,2639.0,2638.7,1.0618]
[1729296978964,0.7922367,2639.1,2638.7,1.0618]
[1729296979792,1.14833561,2639.1,2638.7,1.0618]
[1729296980549,0.28297971,2639.0,2638.7,1.0618]
[1729296980771,0.7922367,2639.1,2638.7,1.0618]
[1729296980972,0.28293811,2639.0,2638.7,1.0618]
[1729296981178,0.7922367,2639.1,2638.7,1.0618]
[1729296981449,0.28291574,2639.0,2638.7,1.0618]
[1729296981761,0.7922367,2639.1,2638.7,1.0618]
[1729296982158,0.28292639,2639.0,2638.7,1.0618]
[1729296982465,0.7922367,2639.1,2638.7,1.0618]
[1729296982661,0.28291591,2639.0,2638.7,1.0618]
[1729296982860,0.7922367,2639.1,2638.7,1.0618]
[1729296983288,0.056627,2639.0,2638.7,1.0618]
[1729296984585,0.7922367,2639.2,2638.7,1.0618]
[1729296984790,0.05473187,2638.9,2638.7,1.0618]
[1729296984994,0.7922367,2639.2,2638.7,1.0618]
[1729296985199,0.05471879,2638.8,2638.7,1.0618]
[1729296985372,0.7922367,2639.2,2638.7,1.0618]
[1729296985561,0.05471879,2638.8,2638.7,1.0618]
[1729296985863,0.7922367,2639.2,2638.7,1.0618]
[1729296986063,0.05471879,2638.8,2638.7,1.0618]
[1729296986270,0.7922367,2639.2,2638.7,1.0618]
[1729296986578,0.28287132,2639.1,2638.7,1.0618]
[1729296986886,0.84698442,2639.1,2638.7,1.0618]
[1729296987397,0.28287894,2639.0,2638.7,1.0618]
[1729296987583,0.84697478,2639.0,2638.7,0.24]
[1729296991449,0.28294916,2638.9,2638.7,0.24]
[1729296991707,0.84697478,2639.0,2638.7,0.24]
[1729296991906,0.05471191,2638.8,2638.7,0.24]
[1729296992130,0.7922367,2639.0,2638.7,0.24]
[1729296992407,0.28296127,2638.9,2638.7,0.24]
[1729296992592,0.05472156,2638.9,2638.7,0.24]
[1729296996508,0.84695826,2638.9,2638.7,0.24]
[1729296997298,0.28325608,2638.8,2638.7,0.24]